[Event "VI Sunway Sitges Open 2019"]
[Site "Sitges"]
[Date "2019.12.18"]
[Round "6.23"]
[White "Lopez Martinez, Josep Manuel"]
[Black "Low, Zhen Yu Cyrus"]
[Result "1-0"]
[ECO "B67"]
[WhiteElo "2561"]
[BlackElo "2420"]
[Annotator "ChessBase"]
[PlyCount "89"]
[EventDate "2019.12.13"]
[EventType "swiss"]
[EventCountry "ESP"]
[SourceTitle "playchess.com"]
[Source "ChessBase"]
[SourceQuality "1"]
[TimeControl "40/5400+30:1800+30"]

1. e4 {[%emt 0:08:26]} c5 {[%emt 0:00:00]} 2. Nf3 {[%emt 0:01:11]} Nc6 {[%emt 0:00:00]} 3. Nc3 {[%emt 0:01:17]} d6 {[%emt 0:00:00]} 4. d4 {[%emt 0:00:44]} cxd4 {[%emt 0:00:05]} 5. Nxd4 {[%emt 0:00:07]} Nf6 {[%emt 0:00:05]} 6. Bg5 {[%emt 0:00:36]} e6 {[%emt 0:00:07]} 7. Qd2 {[%emt 0:00:40]} a6 {[%emt 0:00:06]} 8. O-O-O {[%emt 0:02:21]} Bd7 {[%emt 0:00:11]} 9. f3 {[%emt 0:01:10]} Be7 {[%emt 0:00:20]} 10. h4 {[%emt 0:00:23]} h6 {[%emt 0:00:06]} 11. Be3 {[%emt 0:00:08]} h5 {[%emt 0:00:06]} 12. Bg5 {[%emt 0:01:07]} Qc7 {[%emt 0:01:20]} 13. Kb1 {[%emt 0:01:11]} Ne5 {[%emt 0:00:40]} 14. Bd3 {[%emt 0:00:47]} b5 {[%emt 0:03:27]} 15. Rhe1 {[%emt 0:00:27]} b4 {[%emt 0:05:05]} 16. Nce2 {[%emt 0:01:00]} Qb6 {[%emt 0:05:10]} 17. Be3 {[%emt 0:25:12]} Qb7 {[%emt 0:01:20]} 18. Bg5 {[%emt 0:03:28]} a5 {[%emt 0:26:44]} 19. f4 {[%emt 0:02:00]} Neg4 {[%emt 0:00:07]} 20. Ng1 {[%emt 0:00:41]} a4 {[%emt 0:10:24]} 21. e5 {[%emt 0:03:20]} Nd5 {[%emt 0:04:44]} 22. Bxe7 {[%emt 0:00:53]} Nxe7 {[%emt 0:00:15]} 23. Be4 {[%emt 0:03:01]} d5 {[%emt 0:02:38]} 24. Bf3 {[%emt 0:00:31]} g6 {[%emt 0:06:55]} 25. Bxg4 {[%emt 0:08:10]} hxg4 {[%emt 0:00:03]} 26. Qe2 {[%emt 0:00:43]} Rxh4 {[%emt 0:07:16]} 27. g3 {[%emt 0:01:33]} Rh8 {[%emt 0:00:13]} 28. Qxg4 {[%emt 0:00:10]} Qc7 {[%emt 0:00:19]} 29. Nge2 {[%emt 0:02:59]} Nc8 {[%emt 0:04:41]} 30. Rh1 {[%emt 0:04:51]} Rf8 {[%emt 0:00:33]} 31. Qf3 {[%emt 0:03:09]} Nb6 {[%emt 0:00:10]} 32. b3 {[%emt 0:00:20]} Qa7 {[%emt 0:07:57]} 33. Rd2 {[%emt 0:00:31]} O-O-O {[%emt 0:00:36]} 34. c3 {[%emt 0:04:50]} Kb7 {[%emt 0:02:10]} 35. cxb4 {[%emt 0:00:30]} axb3 {[%emt 0:00:04]} 36. axb3 {[%emt 0:00:57]} Ra8 {[%emt 0:00:20]} 37. Qc3 {[%emt 0:00:22]} Qa3 {[%emt 0:02:16]} 38. Rh7 {[%emt 0:00:11]} Rfc8 {[%emt 0:03:11]} 39. Qb2 {[%emt 0:00:14]} Qxb4 {[%emt 0:02:54]} 40. Rxf7 {[%emt 0:00:00]} Ra3 {[%emt 0:00:00]} 41. Rc2 {[%emt 0:11:35]} Rca8 {[%emt 0:21:49]} 42. Nxe6 {[%emt 0:01:20]} Kb8 {[%emt 0:00:14]} 43. Nc5 {[%emt 0:05:45]} Bf5 {[%emt 0:03:25]} 44. Rb7+ {[%emt 0:02:17]} Kc8 {[%emt 0:00:15]} 45. Nd3+ {[%emt 0:00:27]} 1-0

[Event "VI Sunway Sitges Open 2019"]
[Site "Sitges"]
[Date "2019.12.18"]
[Round "6.24"]
[White "Parvanyan, Ashot"]
[Black "Dragnev, Valentin"]
[Result "1-0"]
[ECO "C45"]
[WhiteElo "2456"]
[BlackElo "2553"]
[Annotator "ChessBase"]
[PlyCount "83"]
[EventDate "2019.12.13"]
[EventType "swiss"]
[EventCountry "ESP"]
[SourceTitle "playchess.com"]
[Source "ChessBase"]
[SourceQuality "1"]
[TimeControl "40/5400+30:1800+30"]

1. e4 {[%emt 0:00:00]} e5 {[%emt 0:00:00]} 2. Nf3 {[%emt 0:00:00]} Nc6 {[%emt 0:00:00]} 3. d4 {[%emt 0:00:10]} exd4 {[%emt 0:00:00]} 4. Nxd4 {[%emt 0:00:05]} Nf6 {[%emt 0:00:09]} 5. Nxc6 {[%emt 0:00:06]} bxc6 {[%emt 0:00:05]} 6. e5 {[%emt 0:00:06]} Qe7 {[%emt 0:00:19]} 7. Qe2 {[%emt 0:00:06]} Nd5 {[%emt 0:00:08]} 8. h4 {[%emt 0:00:22]} Qe6 {[%emt 0:00:16]} 9. Nd2 {[%emt 0:01:14]} a5 {[%emt 0:00:23]} 10. g3 {[%emt 0:02:56]} Nb4 {[%emt 0:00:59]} 11. Nf3 {[%emt 0:00:42]} Ba6 {[%emt 0:01:03]} 12. c4 {[%emt 0:00:54]} Qg6 {[%emt 0:02:19]} 13. Kd1 {[%emt 0:01:29]} c5 {[%emt 0:00:18]} 14. h5 {[%emt 0:02:45]} Qb6 {[%emt 0:00:10]} 15. Bg2 {[%emt 0:00:31]} h6 {[%emt 0:06:38]} 16. Ke1 {[%emt 0:04:21]} O-O-O {[%emt 0:05:48]} 17. Kf1 {[%emt 0:04:23]} d5 {[%emt 0:10:58]} 18. b3 {[%emt 0:27:51]} Kb8 {[%emt 0:10:36]} 19. Be3 {[%emt 0:17:44]} Be7 {[%emt 0:17:10]} 20. Kg1 {[%emt 0:00:00]} Ka7 {[%emt 0:02:14]} 21. Kh2 {[%emt 0:00:00]} g5 {[%emt 0:17:13]} 22. a3 {[%emt 0:18:57]} Nc6 {[%emt 0:00:00]} 23. b4 {[%emt 0:11:06]} Bxc4 {[%emt 0:00:00]} 24. Qc2 {[%emt 0:00:00]} Nd4 {[%emt 0:01:52]} 25. Bxd4 {[%emt 0:00:00]} cxd4 {[%emt 0:00:00]} 26. bxa5 {[%emt 0:06:39]} Qa6 {[%emt 0:03:28]} 27. Nxd4 {[%emt 0:00:00]} c5 {[%emt 0:00:12]} 28. Nc6+ {[%emt 0:00:00]} Qxc6 {[%emt 0:01:44]} 29. Qxc4 {[%emt 0:00:29]} Qe6 {[%emt 0:00:38]} 30. Qd3 {[%emt 0:05:07]} Qa6 {[%emt 0:07:18]} 31. Qf5 {[%emt 0:02:00]} Qe6 {[%emt 0:07:29]} 32. Qd3 {[%emt 0:00:00]} Qa6 {[%emt 0:02:23]} 33. Qf3 {[%emt 0:00:52]} Qxa5 {[%emt 0:04:24]} 34. Rab1 {[%emt 0:00:00]} Rd7 {[%emt 0:00:00]} 35. Rb2 {[%emt 0:02:54]} c4 {[%emt 0:00:00]} 36. Rhb1 {[%emt 0:00:00]} Rhd8 {[%emt 0:00:51]} 37. Rb5 {[%emt 0:00:00]} Qa6 {[%emt 0:00:36]} 38. Qc3 {[%emt 0:00:00]} d4 {[%emt 0:00:25]} 39. Qf3 {[%emt 0:00:00]} g4 {[%emt 0:00:46]} 40. Rb7+ {[%emt 0:00:00]} Rxb7 {[%emt 0:00:17]} 41. Rxb7+ {[%emt 0:00:00]} Ka8 {[%emt 0:00:01]} 42. Qxf7 {[%emt 0:00:52]} 1-0

[Event "VI Sunway Sitges Open 2019"]
[Site "Sitges"]
[Date "2019.12.18"]
[Round "6.25"]
[White "Cernousek, Lukas"]
[Black "Harutyunian, Tigran K."]
[Result "0-1"]
[ECO "E62"]
[WhiteElo "2454"]
[BlackElo "2540"]
[Annotator "ChessBase"]
[PlyCount "84"]
[EventDate "2019.12.13"]
[EventType "swiss"]
[EventCountry "ESP"]
[SourceTitle "playchess.com"]
[Source "ChessBase"]
[SourceQuality "1"]
[TimeControl "40/5400+30:1800+30"]

1. d4 {[%emt 0:00:00]} Nf6 {[%emt 0:03:09]} 2. c4 {[%emt 0:00:00]} g6 {[%emt 0:00:40]} 3. g3 {[%emt 0:00:00]} Bg7 {[%emt 0:00:42]} 4. Bg2 {[%emt 0:00:00]} O-O {[%emt 0:00:27]} 5. Nc3 {[%emt 0:00:20]} d6 {[%emt 0:04:24]} 6. Nf3 {[%emt 0:00:07]} c6 {[%emt 0:01:39]} 7. O-O {[%emt 0:00:12]} Bf5 {[%emt 0:00:37]} 8. Ng5 {[%emt 0:00:54]} e5 {[%emt 0:06:53]} 9. d5 {[%emt 0:11:37]} h6 {[%emt 0:03:15]} 10. dxc6 {[%emt 0:00:00]} bxc6 {[%emt 0:10:16]} 11. Nge4 {[%emt 0:08:21]} Nxe4 {[%emt 0:11:14]} 12. Nxe4 {[%emt 0:00:00]} Bxe4 {[%emt 0:00:19]} 13. Bxe4 {[%emt 0:00:00]} a5 {[%emt 0:26:12]} 14. Bg2 {[%emt 0:14:30]} Qc7 {[%emt 0:00:00]} 15. Qa4 {[%emt 0:07:10]} Rc8 {[%emt 0:18:39]} 16. Bd2 {[%emt 0:20:01]} Nd7 {[%emt 0:00:00]} 17. Rac1 {[%emt 0:03:35]} Nc5 {[%emt 0:05:01]} 18. Qa3 {[%emt 0:04:05]} Rcb8 {[%emt 0:00:00]} 19. Rfd1 {[%emt 0:02:04]} Bf8 {[%emt 0:15:28]} 20. b3 {[%emt 0:08:10]} Ra6 {[%emt 0:00:00]} 21. Be3 {[%emt 0:08:59]} Ne6 {[%emt 0:00:00]} 22. Rc2 {[%emt 0:00:11]} a4 {[%emt 0:00:00]} 23. b4 {[%emt 0:01:41]} Nd4 {[%emt 0:02:51]} 24. Bxd4 {[%emt 0:04:21]} exd4 {[%emt 0:00:00]} 25. Rxd4 {[%emt 0:00:06]} Rab6 {[%emt 0:00:00]} 26. c5 {[%emt 0:00:36]} dxc5 {[%emt 0:00:00]} 27. bxc5 {[%emt 0:02:03]} Rb1+ {[%emt 0:00:00]} 28. Bf1 {[%emt 0:01:37]} Qe5 {[%emt 0:00:00]} 29. Qe3 {[%emt 0:00:12]} Qxe3 {[%emt 0:00:00]} 30. fxe3 {[%emt 0:00:02]} a3 {[%emt 0:00:00]} 31. Kf2 {[%emt 0:01:55]} R1b2 {[%emt 0:00:00]} 32. Rc3 {[%emt 0:04:40]} Ra8 {[%emt 0:00:00]} 33. Bg2 {[%emt 0:00:00]} Ra6 {[%emt 0:00:57]} 34. Rd8 {[%emt 0:00:35]} Rxa2 {[%emt 0:00:00]} 35. Rb3 {[%emt 0:01:11]} Rc2 {[%emt 0:02:05]} 36. Rb1 {[%emt 0:00:00]} a2 {[%emt 0:00:00]} 37. Ra1 {[%emt 0:00:00]} Kg7 {[%emt 0:00:00]} 38. Be4 {[%emt 0:00:00]} Rb2 {[%emt 0:00:00]} 39. Rc8 {[%emt 0:00:00]} Be7 {[%emt 0:00:00]} 40. Rxc6 {[%emt 0:00:00]} Rxc6 {[%emt 0:00:00]} 41. Bxc6 {[%emt 0:06:56]} Rd2 {[%emt 0:00:00]} 42. Ke1 {[%emt 0:00:00]} Bf6 {[%emt 0:00:00]} 0-1

[Event "VI Sunway Sitges Open 2019"]
[Site "Sitges"]
[Date "2019.12.18"]
[Round "6.26"]
[White "Stefansson, Hannes"]
[Black "Dhulipalla Bala Chandra Prasad"]
[Result "1/2-1/2"]
[ECO "C95"]
[WhiteElo "2538"]
[BlackElo "2414"]
[Annotator "ChessBase"]
[PlyCount "92"]
[EventDate "2019.12.13"]
[EventType "swiss"]
[EventCountry "ESP"]
[SourceTitle "playchess.com"]
[Source "ChessBase"]
[SourceQuality "1"]
[TimeControl "40/5400+30:1800+30"]

1. e4 {[%emt 20:32:55]} e5 {[%emt 0:00:06]} 2. Nf3 {[%emt 0:00:11]} Nc6 {[%emt 0:00:06]} 3. Bb5 {[%emt 0:00:14]} a6 {[%emt 0:00:04]} 4. Ba4 {[%emt 0:00:11]} Nf6 {[%emt 0:00:05]} 5. O-O {[%emt 0:00:14]} Be7 {[%emt 0:00:05]} 6. Re1 {[%emt 0:00:30]} b5 {[%emt 0:00:06]} 7. Bb3 {[%emt 0:00:12]} d6 {[%emt 0:00:05]} 8. c3 {[%emt 0:00:15]} O-O {[%emt 0:00:07]} 9. h3 {[%emt 0:00:17]} Nb8 {[%emt 0:00:05]} 10. d4 {[%emt 0:00:19]} Nbd7 {[%emt 0:00:05]} 11. Nbd2 {[%emt 0:00:18]} Bb7 {[%emt 0:00:06]} 12. Bc2 {[%emt 0:00:30]} Re8 {[%emt 0:00:06]} 13. Nf1 {[%emt 0:00:20]} Bf8 {[%emt 0:00:08]} 14. Ng3 {[%emt 0:00:23]} g6 {[%emt 0:00:06]} 15. b3 {[%emt 0:01:02]} a5 {[%emt 0:00:06]} 16. a4 {[%emt 0:01:22]} b4 {[%emt 0:00:31]} 17. cxb4 {[%emt 0:01:12]} axb4 {[%emt 0:00:06]} 18. dxe5 {[%emt 0:09:31]} dxe5 {[%emt 0:01:40]} 19. Bb2 {[%emt 0:07:41]} Bh6 {[%emt 0:02:33]} 20. Bd3 {[%emt 0:05:19]} Nc5 {[%emt 0:16:53]} 21. Bb5 {[%emt 0:04:58]} Qxd1 {[%emt 0:07:28]} 22. Raxd1 {[%emt 0:00:53]} c6 {[%emt 0:00:09]} 23. Bc4 {[%emt 0:01:43]} Nfd7 {[%emt 0:02:37]} 24. Bc1 {[%emt 0:05:13]} Bxc1 {[%emt 0:11:27]} 25. Rxc1 {[%emt 0:00:08]} Ba6 {[%emt 0:00:24]} 26. Red1 {[%emt 0:01:17]} Re7 {[%emt 0:04:57]} 27. Nd2 {[%emt 0:01:15]} Bxc4 {[%emt 0:20:51]} 28. Rxc4 {[%emt 0:00:33]} Re6 {[%emt 0:00:29]} 29. Nf3 {[%emt 0:10:58]} Rb8 {[%emt 0:02:20]} 30. Ne2 {[%emt 0:01:49]} Rb7 {[%emt 0:08:00]} 31. Nc1 {[%emt 0:00:17]} f6 {[%emt 0:01:36]} 32. Nh2 {[%emt 0:05:43]} Kf8 {[%emt 0:03:25]} 33. Nf1 {[%emt 0:01:07]} Ke7 {[%emt 0:03:07]} 34. Ne3 {[%emt 0:00:22]} Rd6 {[%emt 0:04:10]} 35. f3 {[%emt 0:00:36]} Nxa4 {[%emt 0:07:23]} 36. bxa4 {[%emt 0:07:19]} b3 {[%emt 0:00:18]} 37. Nd3 {[%emt 0:05:02]} Rxd3 {[%emt 0:04:25]} 38. Rxd3 {[%emt 0:00:06]} b2 {[%emt 0:00:03]} 39. Rd1 {[%emt 0:00:06]} b1=Q {[%emt 0:00:07]} 40. Rxb1 {[%emt 0:00:03]} Rxb1+ {[%emt 0:00:05]} 41. Kf2 {[%emt 0:00:04]} Kd6 {[%emt 0:12:15]} 42. Rc2 {[%emt 0:02:04]} Ra1 {[%emt 0:01:28]} 43. Nc4+ {[%emt 0:00:08]} Kc7 {[%emt 0:00:25]} 44. a5 {[%emt 0:00:33]} Nc5 {[%emt 0:05:08]} 45. g4 {[%emt 0:10:34]} Nb3 {[%emt 0:06:13]} 46. g5 {[%emt 0:01:39]} Nxa5 {[%emt 0:04:00]} 1/2-1/2

[Event "VI Sunway Sitges Open 2019"]
[Site "Sitges"]
[Date "2019.12.18"]
[Round "6.28"]
[White "Bjerre, Jonas Buhl"]
[Black "Rathanvel, V S"]
[Result "1/2-1/2"]
[ECO "B90"]
[WhiteElo "2526"]
[BlackElo "2410"]
[Annotator "ChessBase"]
[PlyCount "55"]
[EventDate "2019.12.13"]
[EventType "swiss"]
[EventCountry "ESP"]
[SourceTitle "playchess.com"]
[Source "ChessBase"]
[SourceQuality "1"]
[TimeControl "40/5400+30:1800+30"]

1. e4 {[%emt 0:00:00]} c5 {[%emt 0:00:59]} 2. Nf3 {[%emt 0:00:00]} d6 {[%emt 0:00:14]} 3. d4 {[%emt 0:00:00]} cxd4 {[%emt 0:00:07]} 4. Nxd4 {[%emt 0:00:00]} Nf6 {[%emt 0:00:15]} 5. Nc3 {[%emt 0:00:12]} a6 {[%emt 0:00:49]} 6. f3 {[%emt 0:00:18]} e5 {[%emt 0:00:47]} 7. Nb3 {[%emt 0:00:09]} Be6 {[%emt 0:00:08]} 8. Be3 {[%emt 0:00:16]} h5 {[%emt 0:00:41]} 9. Nd5 {[%emt 0:00:37]} Nxd5 {[%emt 0:00:38]} 10. exd5 {[%emt 0:00:15]} Bf5 {[%emt 0:00:08]} 11. Bd3 {[%emt 0:01:33]} Bxd3 {[%emt 0:00:11]} 12. Qxd3 {[%emt 0:00:06]} Nd7 {[%emt 0:00:25]} 13. O-O-O {[%emt 0:03:54]} Be7 {[%emt 0:00:14]} 14. Kb1 {[%emt 0:03:38]} Rc8 {[%emt 0:03:53]} 15. Rhe1 {[%emt 0:08:39]} O-O {[%emt 0:06:20]} 16. g4 {[%emt 0:04:32]} hxg4 {[%emt 0:13:46]} 17. fxg4 {[%emt 0:02:13]} Bg5 {[%emt 0:08:16]} 18. h4 {[%emt 0:10:16]} Bxe3 {[%emt 0:03:35]} 19. Rxe3 {[%emt 0:01:30]} Nc5 {[%emt 0:17:05]} 20. Nxc5 {[%emt 0:07:02]} Rxc5 {[%emt 0:00:04]} 21. g5 {[%emt 0:06:24]} b5 {[%emt 0:06:58]} 22. b3 {[%emt 0:10:21]} Qd7 {[%emt 0:11:35]} 23. Rg1 {[%emt 0:05:19]} Rfc8 {[%emt 0:14:31]} 24. Re2 {[%emt 0:01:38]} Rc3 {[%emt 0:04:49]} 25. Qe4 {[%emt 0:00:07]} Qh3 {[%emt 0:00:16]} 26. Rf2 {[%emt 0:07:24]} Qe3 {[%emt 0:04:30]} 27. Qf5 {[%emt 0:08:00]} Rxc2 {[%emt 0:00:02]} 28. Qxf7+ {[%emt 0:04:50]} 1/2-1/2

[Event "VI Sunway Sitges Open 2019"]
[Site "Sitges"]
[Date "2019.12.18"]
[Round "6.31"]
[White "Girish, A. Koushik"]
[Black "Jimenez Ruano, Adrian"]
[Result "1-0"]
[ECO "A04"]
[WhiteElo "2506"]
[BlackElo "2263"]
[Annotator "ChessBase"]
[PlyCount "89"]
[EventDate "2019.12.13"]
[EventType "swiss"]
[EventCountry "ESP"]
[SourceTitle "playchess.com"]
[Source "ChessBase"]
[SourceQuality "1"]
[TimeControl "40/5400+30:1800+30"]

1. Nf3 {[%emt 0:00:00]} f5 {[%emt 0:00:00]} 2. d3 {[%emt 0:03:03]} Nf6 {[%emt 0:00:25]} 3. e4 {[%emt 0:00:06]} d6 {[%emt 0:00:06]} 4. Nc3 {[%emt 0:00:59]} g6 {[%emt 0:03:09]} 5. h4 {[%emt 0:06:09]} Bg7 {[%emt 0:00:55]} 6. exf5 {[%emt 0:04:20]} Bxf5 {[%emt 0:04:44]} 7. Be2 {[%emt 0:00:42]} e5 {[%emt 0:06:03]} 8. h5 {[%emt 0:02:31]} Nc6 {[%emt 0:09:59]} 9. Nh4 {[%emt 0:11:14]} Nd4 {[%emt 0:08:48]} 10. Nxf5 {[%emt 0:04:00]} Nxf5 {[%emt 0:03:51]} 11. g4 {[%emt 0:03:32]} Nd4 {[%emt 0:00:08]} 12. g5 {[%emt 0:00:09]} Nd7 {[%emt 0:00:08]} 13. Bg4 {[%emt 0:00:07]} c6 {[%emt 0:03:34]} 14. Ne2 {[%emt 0:09:16]} Qe7 {[%emt 0:03:14]} 15. h6 {[%emt 0:00:59]} Bf8 {[%emt 0:00:10]} 16. Nxd4 {[%emt 0:00:19]} exd4+ {[%emt 0:00:06]} 17. Qe2 {[%emt 0:00:23]} Qxe2+ {[%emt 0:05:21]} 18. Kxe2 {[%emt 0:00:13]} O-O-O {[%emt 0:02:32]} 19. f4 {[%emt 0:00:45]} d5 {[%emt 0:01:57]} 20. Bd2 {[%emt 0:01:10]} Bd6 {[%emt 0:00:15]} 21. Raf1 {[%emt 0:01:21]} Kc7 {[%emt 0:03:03]} 22. f5 {[%emt 0:02:45]} Ne5 {[%emt 0:01:00]} 23. Bh3 {[%emt 0:00:41]} Rhf8 {[%emt 0:03:18]} 24. fxg6 {[%emt 0:04:16]} Nxg6 {[%emt 0:05:20]} 25. Bf5 {[%emt 0:00:44]} Rg8 {[%emt 0:00:38]} 26. Kd1 {[%emt 0:01:11]} Rdf8 {[%emt 0:04:15]} 27. Bxg6 {[%emt 0:03:20]} hxg6 {[%emt 0:00:44]} 28. c3 {[%emt 0:33:03]} c5 {[%emt 0:00:27]} 29. cxd4 {[%emt 0:00:32]} cxd4 {[%emt 0:00:02]} 30. h7 {[%emt 0:02:56]} Rh8 {[%emt 0:00:40]} 31. Rxf8 {[%emt 0:00:41]} Bxf8 {[%emt 0:00:05]} 32. Ke2 {[%emt 0:02:51]} Kd7 {[%emt 0:01:55]} 33. Kf3 {[%emt 0:00:15]} Ke6 {[%emt 0:02:44]} 34. Kg4 {[%emt 0:00:25]} Kf7 {[%emt 0:04:52]} 35. Bf4 {[%emt 0:00:12]} Bg7 {[%emt 0:00:01]} 36. a4 {[%emt 0:01:42]} Rc8 {[%emt 0:05:44]} 37. Rc1 {[%emt 0:00:37]} Rxc1 {[%emt 0:03:58]} 38. Bxc1 {[%emt 0:00:02]} Ke6 {[%emt 0:00:15]} 39. Bf4 {[%emt 0:00:04]} a6 {[%emt 0:11:27]} 40. Bb8 {[%emt 0:00:00]} Bh8 {[%emt 0:00:00]} 41. Kf4 {[%emt 0:00:24]} Bg7 {[%emt 0:03:03]} 42. Bc7 {[%emt 0:00:07]} Bh8 {[%emt 0:01:08]} 43. Bd8 {[%emt 0:00:17]} Be5+ {[%emt 0:00:07]} 44. Kg4 {[%emt 0:00:04]} Bg7 {[%emt 0:02:32]} 45. Bf6 {[%emt 0:00:08]} 1-0

[Event "VI Sunway Sitges Open 2019"]
[Site "Sitges"]
[Date "2019.12.18"]
[Round "6.32"]
[White "Shubin, Kirill"]
[Black "Sadzikowski, Daniel"]
[Result "0-1"]
[ECO "B51"]
[WhiteElo "2430"]
[BlackElo "2504"]
[Annotator "ChessBase"]
[PlyCount "80"]
[EventDate "2019.12.13"]
[EventType "swiss"]
[EventCountry "ESP"]
[SourceTitle "playchess.com"]
[Source "ChessBase"]
[SourceQuality "1"]
[TimeControl "40/5400+30:1800+30"]

1. e4 {[%emt 0:00:00]} c5 {[%emt 0:00:00]} 2. Nf3 {[%emt 0:00:00]} d6 {[%emt 0:00:00]} 3. Bb5+ {[%emt 0:00:00]} Nd7 {[%emt 0:00:04]} 4. Ba4 {[%emt 0:00:00]} Ngf6 {[%emt 0:00:04]} 5. O-O {[%emt 0:00:00]} e6 {[%emt 0:00:10]} 6. d3 {[%emt 0:00:00]} Be7 {[%emt 0:03:53]} 7. c4 {[%emt 0:00:23]} O-O {[%emt 0:01:54]} 8. Nc3 {[%emt 0:00:05]} Ne5 {[%emt 0:00:51]} 9. Ne1 {[%emt 0:07:39]} Bd7 {[%emt 0:05:26]} 10. Bb3 {[%emt 0:08:11]} Nc6 {[%emt 0:02:26]} 11. f4 {[%emt 0:00:07]} Nd4 {[%emt 0:02:23]} 12. Nf3 {[%emt 0:00:05]} Nxb3 {[%emt 0:11:11]} 13. axb3 {[%emt 0:00:20]} Bc6 {[%emt 0:00:02]} 14. Re1 {[%emt 0:03:56]} b6 {[%emt 0:07:57]} 15. Qe2 {[%emt 0:10:22]} Re8 {[%emt 0:00:37]} 16. Bd2 {[%emt 0:02:01]} Bf8 {[%emt 0:06:58]} 17. Kh1 {[%emt 0:07:43]} d5 {[%emt 0:07:14]} 18. e5 {[%emt 0:09:44]} Ng4 {[%emt 0:00:45]} 19. h3 {[%emt 0:05:06]} Nh6 {[%emt 0:01:07]} 20. Kh2 {[%emt 0:00:08]} Nf5 {[%emt 0:07:13]} 21. g4 {[%emt 0:01:00]} Nd4 {[%emt 0:02:42]} 22. Nxd4 {[%emt 0:00:04]} cxd4 {[%emt 0:00:08]} 23. Nd1 {[%emt 0:00:13]} a5 {[%emt 0:03:30]} 24. Nf2 {[%emt 0:01:07]} Qd7 {[%emt 0:03:33]} 25. g5 {[%emt 0:01:47]} Qb7 {[%emt 0:11:05]} 26. c5 {[%emt 0:13:34]} bxc5 {[%emt 0:00:09]} 27. Ng4 {[%emt 0:00:18]} Qxb3 {[%emt 0:03:00]} 28. Rg1 {[%emt 0:00:14]} Kh8 {[%emt 0:02:12]} 29. Rg3 {[%emt 0:00:46]} Qxb2 {[%emt 0:01:19]} 30. Rag1 {[%emt 0:00:06]} c4 {[%emt 0:01:24]} 31. R1g2 {[%emt 0:01:21]} c3 {[%emt 0:06:52]} 32. Nf6 {[%emt 0:00:07]} g6 {[%emt 0:00:05]} 33. Qg4 {[%emt 0:03:36]} cxd2 {[%emt 0:00:02]} 34. Qh4 {[%emt 0:00:13]} h6 {[%emt 0:00:10]} 35. gxh6 {[%emt 0:04:27]} Be7 {[%emt 0:05:26]} 36. f5 {[%emt 0:00:23]} exf5 {[%emt 0:02:13]} 37. e6 {[%emt 0:00:13]} fxe6 {[%emt 0:00:51]} 38. Qg5 {[%emt 0:01:24]} Rg8 {[%emt 0:01:00]} 39. h4 {[%emt 0:00:14]} Raf8 {[%emt 0:00:50]} 40. h7 {[%emt 0:00:00]} Rg7 {[%emt 0:00:00]} 0-1

[Event "VI Sunway Sitges Open 2019"]
[Site "Sitges"]
[Date "2019.12.18"]
[Round "6.33"]
[White "Zanan, Evgeny"]
[Black "Sekar, B."]
[Result "0-1"]
[ECO "B90"]
[WhiteElo "2493"]
[BlackElo "2176"]
[Annotator "ChessBase"]
[PlyCount "92"]
[EventDate "2019.12.13"]
[EventType "swiss"]
[EventCountry "ESP"]
[SourceTitle "playchess.com"]
[Source "ChessBase"]
[SourceQuality "1"]
[TimeControl "40/5400+30:1800+30"]

1. e4 {[%emt 0:09:42]} c5 {[%emt 0:00:00]} 2. Nf3 {[%emt 0:00:05]} d6 {[%emt 0:00:00]} 3. d4 {[%emt 0:00:06]} cxd4 {[%emt 0:00:00]} 4. Nxd4 {[%emt 0:00:04]} Nf6 {[%emt 0:00:00]} 5. Nc3 {[%emt 0:00:08]} a6 {[%emt 0:00:00]} 6. Bd3 {[%emt 0:03:15]} e5 {[%emt 0:00:01]} 7. Nde2 {[%emt 0:00:04]} Be7 {[%emt 0:00:05]} 8. O-O {[%emt 0:00:05]} Be6 {[%emt 0:01:00]} 9. f4 {[%emt 0:03:40]} O-O {[%emt 0:00:41]} 10. f5 {[%emt 0:01:34]} Bd7 {[%emt 0:00:46]} 11. Ng3 {[%emt 0:09:33]} Bc6 {[%emt 0:01:27]} 12. a4 {[%emt 0:03:55]} Nbd7 {[%emt 0:07:20]} 13. Be3 {[%emt 0:10:12]} d5 {[%emt 0:15:59]} 14. exd5 {[%emt 0:00:14]} Nxd5 {[%emt 0:00:02]} 15. Nxd5 {[%emt 0:00:05]} Bxd5 {[%emt 0:00:06]} 16. Qe2 {[%emt 0:15:22]} Nf6 {[%emt 0:07:50]} 17. c4 {[%emt 0:02:36]} Bc6 {[%emt 0:03:39]} 18. a5 {[%emt 0:00:31]} e4 {[%emt 0:11:26]} 19. Bc2 {[%emt 0:01:41]} Bd6 {[%emt 0:00:50]} 20. Nh5 {[%emt 0:22:49]} Be5 {[%emt 0:03:59]} 21. Rfd1 {[%emt 0:03:44]} Qc8 {[%emt 0:01:12]} 22. Nxf6+ {[%emt 0:02:12]} Bxf6 {[%emt 0:00:02]} 23. Qg4 {[%emt 0:00:07]} Bxb2 {[%emt 0:14:52]} 24. Rab1 {[%emt 0:00:12]} Bf6 {[%emt 0:00:25]} 25. Bxe4 {[%emt 0:01:11]} Qe8 {[%emt 0:01:22]} 26. Rd5 {[%emt 0:02:34]} Bxd5 {[%emt 0:00:20]} 27. cxd5 {[%emt 0:00:01]} Qa4 {[%emt 0:03:39]} 28. Bb6 {[%emt 0:04:43]} h5 {[%emt 0:05:03]} 29. Qf3 {[%emt 0:00:00]} Rfe8 {[%emt 0:00:15]} 30. Bd3 {[%emt 0:00:00]} Bd4+ {[%emt 0:00:19]} 31. Kh1 {[%emt 0:00:02]} Re3 {[%emt 0:01:30]} 32. Qd1 {[%emt 0:00:18]} Qxd1+ {[%emt 0:00:11]} 33. Rxd1 {[%emt 0:00:03]} Bxb6 {[%emt 0:00:06]} 34. axb6 {[%emt 0:00:01]} Rae8 {[%emt 0:00:45]} 35. Kg1 {[%emt 0:01:19]} Re1+ {[%emt 0:01:08]} 36. Rxe1 {[%emt 0:00:00]} Rxe1+ {[%emt 0:00:03]} 37. Kf2 {[%emt 0:00:00]} Re7 {[%emt 0:03:36]} 38. Kf3 {[%emt 0:00:07]} Rd7 {[%emt 0:00:56]} 39. Ke4 {[%emt 0:01:43]} Rd6 {[%emt 0:00:15]} 40. Kd4 {[%emt 0:00:00]} Rxb6 {[%emt 0:00:00]} 41. Kc5 {[%emt 0:00:12]} Rf6 {[%emt 0:00:41]} 42. d6 {[%emt 0:01:08]} Kf8 {[%emt 0:00:07]} 43. Be4 {[%emt 0:00:14]} Ke8 {[%emt 0:00:47]} 44. Bxb7 {[%emt 0:00:29]} Rxf5+ {[%emt 0:00:17]} 45. Kc6 {[%emt 0:00:04]} Kd8 {[%emt 0:00:13]} 46. Bxa6 {[%emt 0:00:56]} Rf2 {[%emt 0:00:04]} 0-1